bitfinex/quotes_BTCUSD_20240627
["timestamp","ask_amount","ask_price","bid_price","bid_amount"]
[1719460728814,0.1049,61100.0,61099.0,0.655105]
[1719460728815,0.009,61100.0,61099.0,0.655105]
[1719460729471,0.009,61100.0,61099.0,0.66430391]
[1719460729990,0.1049,61100.0,61099.0,0.17329891]
[1719460730237,0.1049,61100.0,61099.0,0.33696691]
[1719460730746,0.1009,61100.0,61099.0,0.33696691]
[1719460730906,0.0959,61100.0,61099.0,0.33696691]
[1719460731115,0.0999,61100.0,61099.0,0.33696691]
[1719460731540,0.0959,61100.0,61099.0,0.33696691]
[1719460731702,0.1009,61100.0,61099.0,0.33696691]
[1719460731907,0.1019,61100.0,61099.0,0.33696691]
[1719460732107,0.0969,61100.0,61099.0,0.33696691]
[1719460732306,0.0989,61100.0,61099.0,0.33696691]
[1719460733041,0.0989,61100.0,61099.0,0.30421546]
[1719460735626,0.0989,61100.0,61099.0,0.12054746]
[1719460735834,0.0989,61100.0,61099.0,0.14054746]
[1719460740703,0.12895191,61100.0,61099.0,0.14054746]
[1719460741170,0.2025275,61100.0,61099.0,0.14054746]
[1719460741366,0.2025275,61100.0,61099.0,0.02919891]
[1719460741766,0.2025275,61100.0,61099.0,0.00919891]
[1719460742938,0.17247791,61100.0,61099.0,0.00919891]
[1719460743140,0.20268841,61100.0,61099.0,0.00919891]
[1719460743708,0.36635441,61100.0,61099.0,0.00919891]
[1719460743831,0.44815441,61100.0,61099.0,0.00919891]
[1719460744271,0.3745765,61100.0,61098.0,0.000924]
[1719460744488,0.12832692,61099.0,61098.0,0.000924]
[1719460744680,0.5979155,61099.0,61098.0,0.000924]
[1719460744853,1.45104768,61099.0,61098.0,0.000924]
[1719460745062,1.47992848,61099.0,61098.0,0.000924]
[1719460745266,1.72708431,61099.0,61098.0,0.000924]
[1719460745466,1.57992848,61099.0,61098.0,0.000924]
[1719460746317,1.58017663,61099.0,61098.0,0.000924]
[1719460746663,1.58017671,61099.0,61098.0,0.000924]
[1719460747775,1.5801483,61099.0,61098.0,0.000924]
[1719460747960,1.5811483,61099.0,61098.0,0.000924]
[1719460749164,1.5801483,61099.0,61098.0,0.000924]
[1719460749363,1.5941483,61099.0,61098.0,0.001924]
[1719460750868,1.6081483,61099.0,61098.0,0.002924]
[1719460751265,1.5941483,61099.0,61098.0,0.001924]
[1719460751593,1.6081483,61099.0,61098.0,0.002924]
[1719460752569,1.60812662,61099.0,61098.0,0.002924]
[1719460755606,1.57771798,61099.0,61098.0,0.002924]
[1719460755810,1.60843024,61099.0,61098.0,0.002924]
[1719460756218,1.75557848,61099.0,61098.0,0.002924]
[1719460757150,1.38244148,61099.0,61098.0,0.002924]
[1719460758928,1.38290405,61099.0,61098.0,0.002924]
[1719460761045,0.491029,61096.0,61095.0,0.04577255]
[1719460761249,0.61804202,61096.0,61095.0,0.04577255]
[1719460762181,0.61772757,61096.0,61095.0,0.04577255]
[1719460762604,0.63072757,61096.0,61095.0,0.04677255]
[1719460763692,0.64272757,61096.0,61095.0,0.04777255]
[1719460765373,0.611929,61096.0,61095.0,0.04777255]
[1719460765606,0.64260769,61096.0,61095.0,0.04777255]
[1719460765821,0.64260801,61096.0,61095.0,0.04777255]
[1719460767538,0.64260801,61096.0,61095.0,0.002]
[1719460770300,0.163681,61095.0,61093.0,0.04424855]
[1719460770520,0.03067901,61094.0,61093.0,0.04424855]
[1719460771575,0.163681,61095.0,61093.0,0.04424855]
[1719460771771,0.04062903,61094.0,61093.0,0.04624855]
[1719460772190,0.04062903,61094.0,61093.0,0.04524855]
[1719460773074,0.13652903,61094.0,61093.0,0.04524855]
[1719460773747,0.14552903,61094.0,61093.0,0.04624855]
[1719460774544,0.14552903,61094.0,61093.0,0.05553095]
[1719460774742,0.1149,61094.0,61093.0,0.05553095]
[1719460774942,0.03104788,61094.0,61093.0,0.05553095]
[1719460775162,0.0959,61094.0,61093.0,0.05553095]
[1719460775356,0.1268036,61094.0,61093.0,0.05553095]
[1719460778097,0.12672758,61094.0,61093.0,0.05553095]
[1719460779877,0.12672758,61094.0,61093.0,0.02277736]
[1719460780087,0.12672758,61094.0,61093.0,0.01349496]
[1719460781324,0.12675214,61094.0,61093.0,0.01349496]
[1719460781704,0.12675214,61094.0,61093.0,0.002]
[1719460783630,0.12675214,61094.0,61093.0,0.0112824]
[1719460783857,0.20215214,61094.0,61093.0,0.0112824]
[1719460784327,0.1713,61094.0,61093.0,0.002]
[1719460784555,0.20206436,61094.0,61093.0,0.002]
[1719460785001,0.20206409,61094.0,61093.0,0.002]
[1719460787733,0.20267842,61094.0,61093.0,0.002]
[1719460788134,0.20267842,61094.0,61093.0,0.002924]
[1719460788732,0.03137842,61094.0,61093.0,0.143024]
[1719460788933,0.27458339,61094.0,61093.0,0.143024]
[1719460789113,0.12727842,61094.0,61093.0,0.15074465]
[1719460789316,0.27458339,61094.0,61093.0,0.11027148]
[1719460790827,0.12731834,61094.0,61093.0,0.11027148]
[1719460791027,0.27469076,61094.0,61093.0,0.11027148]
[1719460792341,0.17879076,61094.0,61093.0,0.11027148]
[1719460792539,0.27469076,61094.0,61093.0,0.11027148]
[1719460792965,0.17879076,61094.0,61093.0,0.0608]
[1719460793213,0.03141834,61094.0,61093.0,0.1594]
[1719460793350,0.03141834,61094.0,61093.0,0.33080465]
[1719460793566,0.02230287,61099.0,61098.0,0.02]
[1719460793764,0.15364357,61099.0,61098.0,0.1423]
[1719460793969,0.03218063,61099.0,61098.0,1.24661442]
[1719460794177,0.00084,61099.0,61098.0,1.25661442]
[1719460794385,0.00084,61099.0,61098.0,1.58395642]
[1719460795675,0.00184,61099.0,61098.0,1.59795642]
[1719460796045,0.00184,61099.0,61098.0,1.49205642]
[1719460796250,0.00184,61099.0,61098.0,1.59795642]
[1719460797115,0.00284,61099.0,61098.0,1.61195642]
[1719460797493,0.00184,61099.0,61098.0,1.59795642]
[1719460797899,0.00184,61099.0,61098.0,1.58795642]
[1719460798285,0.00284,61099.0,61098.0,1.60195642]
[1719460798489,0.00284,61099.0,61098.0,1.56920283]
[1719460800509,0.00284,61099.0,61098.0,1.77920283]
[1719460801533,0.00284,61099.0,61098.0,1.57920283]
[1719460803010,0.00284,61099.0,61098.0,1.54920283]
[1719460803182,0.00284,61099.0,61098.0,1.74920283]
[1719460803384,0.00284,61099.0,61098.0,1.97920283]
[1719460803812,0.00284,61099.0,61098.0,2.30654483]
[1719460804023,0.00084,61100.0,61099.0,1.748279]
[1719460804187,0.00084,61100.0,61099.0,2.60255498]
[1719460805407,0.48782074,61122.0,61121.0,0.0828]
[1719460805860,0.00084,61127.0,61123.0,0.02]
[1719460806238,0.00084,61127.0,61125.0,0.02]
[1719460806413,0.00084,61127.0,61123.0,0.02]
[1719460806616,0.00084,61127.0,61125.0,0.02]
[1719460806814,0.00084,61127.0,61123.0,0.02]
[1719460807026,0.00084,61127.0,61125.0,0.02]
[1719460807304,0.00084,61127.0,61123.0,0.02]
[1719460807714,0.0959,61126.0,61123.0,0.02]
[1719460808148,0.00984,61127.0,61123.0,0.021]
[1719460808366,0.0959,61126.0,61123.0,0.001]
[1719460808564,0.0959,61126.0,61121.0,0.0828]
[1719460808764,0.0959,61126.0,61123.0,0.001]
[1719460808969,0.1049,61126.0,61123.0,0.021]
[1719460809168,0.1049,61126.0,61125.0,0.001]
[1719460809576,0.1049,61126.0,61123.0,0.001]
[1719460809781,0.0959,61124.0,61123.0,0.001]
[1719460810226,0.0959,61124.0,61111.0,0.02]
[1719460810227,0.240604,61123.0,61111.0,0.02]
[1719460810526,0.0959,61116.0,61111.0,0.02]
[1719460810883,0.0959,61116.0,61109.0,0.16364]
[1719460810884,0.0959,61116.0,61113.0,0.02]
[1719460811053,0.0959,61116.0,61109.0,0.16364]
[1719460811054,0.0959,61116.0,61111.0,0.02]
[1719460811455,0.0821,61115.0,61110.0,0.02]
[1719460811856,0.0821,61115.0,61111.0,0.02]
[1719460812065,0.0821,61115.0,61112.0,0.02]
[1719460812400,0.0821,61115.0,61113.0,0.004]
[1719460813799,0.0821,61115.0,61111.0,0.02]
[1719460813931,0.0821,61115.0,61113.0,0.005]
[1719460814332,0.0821,61115.0,61113.0,0.02]
[1719460814831,0.0861,61115.0,61113.0,0.02]
[1719460815085,0.0821,61115.0,61113.0,0.02]
[1719460815392,0.0861,61115.0,61113.0,0.02]
[1719460815772,0.004,61118.0,61113.0,0.02]
[1719460815991,0.08969346,61177.0,61126.0,0.163596]
[1719460815992,0.0204928,61129.0,61126.0,0.163596]
[1719460816188,0.74312927,61132.0,61126.0,0.673189]
[1719460816363,0.74312927,61132.0,61126.0,0.654589]
[1719460816947,0.4716,61132.0,61126.0,0.654589]
[1719460817196,0.00984,61127.0,61126.0,0.655589]
[1719460817398,0.00984,61127.0,61126.0,0.654589]
[1719460817633,0.00084,61127.0,61126.0,0.66417934]
[1719460817845,0.00384,61127.0,61126.0,0.66417934]
[1719460819365,0.00384,61127.0,61126.0,1.15371132]
[1719460821049,0.08220619,61142.0,61131.0,0.16358]
[1719460821267,0.08220619,61142.0,61129.0,0.327171]
[1719460821268,0.08220619,61142.0,61135.0,0.02]
[1719460821468,0.08220619,61142.0,61132.0,0.163579]
[1719460821469,0.08220619,61142.0,61132.0,0.00950567]
[1719460821671,0.08220619,61142.0,61136.0,0.0095055]
[1719460821871,0.08220619,61142.0,61131.0,0.183582]
[1719460822152,0.08220619,61142.0,61137.0,0.00950546]
[1719460822351,0.08320619,61142.0,61131.0,0.184582]
[1719460822504,0.08320619,61142.0,61138.0,0.00950542]
[1719460822697,0.08320619,61142.0,61131.0,0.184582]
[1719460822918,0.08130346,61140.0,61131.0,0.001]
[1719460823086,0.327134,61137.0,61131.0,0.001]
[1719460823304,0.163573,61135.0,61131.0,0.001]
[1719460823758,0.163573,61135.0,61123.0,0.02]
[1719460823949,0.0635,61136.0,61131.0,0.001]
[1719460823950,0.163576,61134.0,61131.0,0.001]
[1719460824166,0.08130346,61133.0,61131.0,0.001]
[1719460824364,0.08130346,61133.0,61117.0,0.0654]
[1719460824365,0.163612,61120.0,61117.0,0.02]
[1719460824564,0.405515,61122.0,61118.0,0.00951873]
[1719460824565,0.16361,61121.0,61118.0,0.00951873]
[1719460824719,0.1418,61122.0,61117.0,0.02]
[1719460825710,0.1418,61122.0,61118.0,0.007]
[1719460825913,0.0783,61122.0,61119.0,0.02]
[1719460826102,0.163606,61123.0,61119.0,0.02]
[1719460826420,0.163606,61123.0,61118.0,0.027]
[1719460827106,0.001,61122.0,61118.0,0.026]
[1719460827314,0.001,61122.0,61118.0,0.02]
[1719460827526,0.001,61122.0,61118.0,0.025]
[1719460827934,0.163606,61123.0,61118.0,0.005]
[1719460828137,0.164606,61123.0,61118.0,0.006]
[1719460828344,0.164606,61123.0,61119.0,0.00951869]
[1719460828712,0.163606,61123.0,61118.0,0.005]
[1719460829081,0.001,61122.0,61119.0,0.00951869]
[1719460829277,0.001,61122.0,61118.0,0.001]
[1719460829475,0.001,61122.0,61119.0,0.00951869]
[1719460829690,0.001,61122.0,61118.0,0.001]
[1719460829895,0.002,61122.0,61119.0,0.00951869]
[1719460830101,0.002,61122.0,61118.0,0.007]
[1719460830299,0.001,61122.0,61119.0,0.00951869]
[1719460830619,0.001,61122.0,61118.0,0.011]
[1719460831032,0.001,61122.0,61119.0,0.00951869]
[1719460831488,0.002,61122.0,61119.0,0.007]
[1719460831846,0.001,61122.0,61119.0,0.007]
[1719460832423,0.001,61122.0,61121.0,0.01]
[1719460832625,0.001,61122.0,61121.0,0.16247193]
[1719460832979,0.001,61122.0,61121.0,0.17204462]
[1719460833179,0.002,61122.0,61121.0,0.17204462]
[1719460833382,0.001,61122.0,61121.0,0.17204462]
[1719460833581,0.163581,61132.0,61127.0,0.02]
[1719460833822,0.226476,61134.0,61125.0,0.02]
[1719460834048,0.226476,61134.0,61123.0,0.02]
[1719460834311,0.226476,61134.0,61126.0,0.00957248]
[1719460834542,0.163578,61133.0,61124.0,0.00957257]
[1719460834681,0.163578,61133.0,61123.0,0.02]
[1719460834896,0.006,61132.0,61127.0,0.001]
[1719460835142,0.006,61132.0,61128.0,0.0095724]
[1719460835335,0.163578,61133.0,61125.0,0.001]
[1719460835559,0.163578,61133.0,61126.0,0.00957248]
[1719460836766,0.163578,61133.0,61127.0,0.00327153]
[1719460836895,0.163578,61133.0,61128.0,0.0095724]
[1719460837096,0.163578,61133.0,61127.0,0.00327153]
[1719460837524,0.163578,61133.0,61126.0,0.001]
[1719460837525,0.163581,61132.0,61126.0,0.002]
[1719460837757,0.163592,61128.0,61126.0,0.001]
[1719460837899,0.163592,61128.0,61127.0,0.00957244]
[1719460838099,0.163592,61128.0,61126.0,0.001]
[1719460838729,0.163592,61128.0,61121.0,0.1592]
[1719460838945,0.163593,61127.0,61122.0,0.00955981]
[1719460839132,0.163593,61127.0,61121.0,0.1592]
[1719460841081,0.242993,61127.0,61121.0,0.02]
[1719460841518,0.242993,61127.0,61122.0,0.00955963]
[1719460841714,0.29199736,61127.0,61122.0,0.00955963]
[1719460841983,0.29199736,61127.0,61121.0,0.02]
[1719460842230,0.29199736,61127.0,61122.0,0.00955926]
[1719460842658,0.29199736,61127.0,61121.0,0.02]
[1719460842863,0.21259736,61127.0,61121.0,0.02]
[1719460843045,0.2126,61127.0,61121.0,0.02]
[1719460843395,0.049007,61126.0,61121.0,0.02]
[1719460843623,0.049007,61124.0,61117.0,0.0834]
[1719460843791,0.163607,61122.0,61117.0,0.0834]
[1719460844194,0.163607,61122.0,61118.0,0.02]
[1719460844417,0.049007,61123.0,61118.0,0.02]
[1719460844617,0.049007,61122.0,61121.0,0.001]
[1719460844853,0.049007,61122.0,61118.0,0.02]
[1719460845153,0.050007,61122.0,61118.0,0.02]
[1719460845351,0.049007,61121.0,61118.0,0.027]
[1719460845555,0.049007,61121.0,61120.0,0.02]
[1719460845709,0.049007,61121.0,61120.0,0.00955934]
[1719460845910,0.049007,61121.0,61118.0,0.007]
[1719460846115,0.049007,61121.0,61119.0,0.00955938]
[1719460846116,0.04901684,61121.0,61119.0,0.00955938]
[1719460846319,0.04901684,61120.0,61118.0,0.007]
[1719460846716,0.04901684,61120.0,61119.0,0.0095492]
[1719460847669,0.07352527,61121.0,61119.0,0.0095492]
[1719460848191,0.07452527,61121.0,61118.0,0.028]
[1719460848394,0.001,61120.0,61119.0,0.0175492]
[1719460848725,0.002,61120.0,61119.0,0.0185492]
[1719460849132,0.165612,61120.0,61119.0,0.0185492]
[1719460849334,0.002,61120.0,61119.0,0.009]
[1719460849535,0.002,61120.0,61119.0,0.0185492]
[1719460849743,0.002,61120.0,61119.0,0.009]
[1719460849946,0.002,61120.0,61119.0,0.017]
[1719460850302,0.002,61120.0,61119.0,0.029]
[1719460850303,0.07454316,61120.0,61119.0,0.029]
[1719460850441,0.07454316,61120.0,61119.0,0.0896]
[1719460850638,0.002,61120.0,61119.0,0.0976]
[1719460850848,0.07554306,61120.0,61119.0,0.1104211]
[1719460851046,0.07554306,61120.0,61119.0,0.0871492]
[1719460851437,0.07554306,61120.0,61119.0,0.1071492]
[1719460853016,0.07554306,61120.0,61119.0,0.0871492]
[1719460853167,0.10461593,61120.0,61119.0,0.0871492]
[1719460855419,0.03107287,61120.0,61119.0,0.0265492]
[1719460855618,0.03087441,61120.0,61119.0,0.017]
[1719460855868,0.03087441,61120.0,61119.0,0.02654887]
[1719460856019,0.12894299,61120.0,61119.0,0.02654887]
[1719460856240,0.12894299,61120.0,61119.0,0.017]
[1719460856241,0.03087441,61120.0,61119.0,0.017]
[1719460856404,0.03087441,61120.0,61119.0,0.18261109]
[1719460856607,0.002,61120.0,61119.0,0.27128785]
[1719460856805,0.002,61120.0,61119.0,0.29128785]
[1719460857063,0.05103453,61120.0,61119.0,0.29128785]
[1719460858485,0.05103453,61120.0,61119.0,0.35341185]
[1719460858688,0.002,61120.0,61119.0,0.35341185]
[1719460858843,0.05103955,61120.0,61119.0,0.35341185]
[1719460859246,0.05104326,61120.0,61119.0,0.35341185]
[1719460861296,0.04904617,61120.0,61119.0,0.35341185]
[1719460863024,0.07356926,61121.0,61120.0,0.02]
[1719460863219,0.07356926,61121.0,61120.0,0.02956292]
[1719460864026,0.163589,61129.0,61120.0,0.02956292]
[1719460864225,0.07359413,61121.0,61120.0,0.02956292]
[1719460864431,0.001,61121.0,61120.0,0.03756292]
[1719460864630,0.001,61121.0,61120.0,0.04556292]
[1719460864631,0.002,61121.0,61120.0,0.04556292]
[1719460864833,0.07559396,61121.0,61120.0,0.04556292]
[1719460865190,0.002,61121.0,61120.0,0.04556292]
[1719460866167,0.10012551,61121.0,61120.0,0.04556292]
[1719460867136,0.12938604,61121.0,61120.0,0.04556292]
[1719460868055,0.12944184,61121.0,61120.0,0.04556292]
[1719460868222,0.03126053,61121.0,61120.0,0.04556292]
[1719460868371,0.15398717,61121.0,61120.0,0.04556292]
[1719460868804,0.15398717,61121.0,61120.0,0.016]
[1719460868805,0.1540258,61121.0,61120.0,0.016]
[1719460869004,0.03126053,61121.0,61120.0,0.016]
[1719460870401,0.75918853,61121.0,61120.0,0.016]
[1719460870624,1.56094281,61121.0,61120.0,0.016]
[1719460870972,1.51354506,61121.0,61120.0,0.016]
[1719460871173,1.67932445,61121.0,61120.0,0.016]
[1719460871597,1.51354506,61121.0,61120.0,0.016]
[1719460871752,0.818062,61120.0,61119.0,0.000924]
[1719460871937,0.98854106,61120.0,61119.0,0.000924]
[1719460873280,1.01086777,61120.0,61119.0,0.000924]
[1719460873477,1.01086777,61120.0,61119.0,0.001924]
[1719460873478,1.01886777,61120.0,61119.0,0.001924]
[1719460873680,0.99654106,61120.0,61119.0,0.001924]
[1719460873910,0.99709275,61120.0,61119.0,0.001924]
[1719460874113,1.00409275,61120.0,61119.0,0.002924]
[1719460877074,1.00409183,61120.0,61119.0,0.002924]
[1719460877363,1.00409267,61120.0,61119.0,0.002924]
[1719460878457,1.00409466,61120.0,61119.0,0.002924]
[1719460880256,1.01892368,61120.0,61119.0,0.002924]
[1719460882380,1.16609656,61120.0,61119.0,0.002924]
[1719460883144,1.01892368,61120.0,61119.0,0.002924]
[1719460883368,0.98902031,61120.0,61119.0,0.002924]
[1719460883543,1.16756131,61120.0,61119.0,0.002924]
[1719460886248,1.26336131,61120.0,61119.0,0.002924]
[1719460886487,1.08645647,61120.0,61119.0,0.002924]
[1719460886742,1.26312927,61120.0,61119.0,0.002924]
[1719460886946,1.11596669,61120.0,61119.0,0.002924]
[1719460887146,1.26313183,61120.0,61119.0,0.002924]
[1719460887881,1.11596691,61120.0,61119.0,0.002924]
[1719460888107,1.26312966,61120.0,61119.0,0.002924]
[1719460888502,1.11596691,61120.0,61119.0,0.002924]
[1719460889706,1.02265647,61120.0,61119.0,0.002924]
[1719460889905,1.19942409,61120.0,61119.0,0.002924]
[1719460890129,1.05226252,61120.0,61119.0,0.002924]
[1719460890731,1.10361793,61120.0,61119.0,0.002924]
[1719460890935,1.19941793,61120.0,61119.0,0.002924]
[1719460892929,0.97476252,61120.0,61119.0,0.149224]
[1719460893140,1.12230295,61120.0,61119.0,0.149224]
[1719460893546,1.12230295,61120.0,61119.0,0.002924]
[1719460894003,0.79507795,61120.0,61119.0,0.002924]
[1719460896208,0.61793147,61120.0,61119.0,0.002924]
[1719460896534,0.79495572,61120.0,61119.0,0.002924]
[1719460896751,0.76508811,61120.0,61119.0,0.002924]
[1719460897039,0.79495145,61120.0,61119.0,0.002924]
[1719460899425,0.64772916,61120.0,61119.0,0.002924]
[1719460899549,0.79488551,61120.0,61119.0,0.002924]
[1719460899750,0.8205415,61120.0,61119.0,0.002924]
[1719460901695,0.64358746,61120.0,61119.0,0.002924]
[1719460901867,0.82043101,61120.0,61119.0,0.002924]
[1719460902668,0.79076004,61120.0,61119.0,0.002924]
[1719460902855,0.82044391,61120.0,61119.0,0.002924]
[1719460903509,0.67327133,61120.0,61119.0,0.002924]
[1719460904676,0.81727133,61120.0,61119.0,0.002924]
[1719460905901,0.81707166,61120.0,61119.0,0.002924]
[1719460906302,0.81707167,61120.0,61119.0,0.002924]
[1719460906742,1.14429667,61120.0,61119.0,0.002924]
[1719460907406,1.14423297,61120.0,61119.0,0.002924]
[1719460907556,0.81700797,61120.0,61119.0,0.002924]
[1719460908372,1.14423297,61120.0,61119.0,0.002924]
[1719460908764,0.81700797,61120.0,61119.0,0.002924]
[1719460909224,1.14417256,61120.0,61119.0,0.002924]
[1719460912344,1.11481246,61120.0,61119.0,0.002924]
[1719460912497,1.14418646,61120.0,61119.0,0.002924]
[1719460915444,1.30991691,61120.0,61119.0,0.002924]
[1719460915783,1.31009083,61120.0,61119.0,0.002924]
[1719460915917,1.11481246,61120.0,61119.0,0.002924]
[1719460916129,1.31009209,61120.0,61119.0,0.002924]
[1719460916327,0.82566709,61120.0,61119.0,0.002924]
[1719460916593,0.67300165,61120.0,61119.0,0.002924]
[1719460918563,0.64358746,61120.0,61119.0,0.002924]
[1719460918908,0.67350774,61120.0,61119.0,0.002924]
[1719460919087,1.00073274,61120.0,61119.0,0.002924]
[1719460921172,0.99615827,61120.0,61119.0,0.002924]
[1719460921613,1.48572225,61120.0,61119.0,0.002924]
[1719460921874,2.07606049,61120.0,61119.0,0.002924]
[1719460922004,2.49900529,61120.0,61119.0,0.002924]
[1719460922368,0.163663,61101.0,61100.0,0.146924]
[1719460922570,0.6165033,61101.0,61100.0,0.146924]
[1719460923612,0.6175033,61101.0,61100.0,0.154924]
[1719460924226,0.62044946,61101.0,61100.0,0.154924]
[1719460924429,0.76827159,61101.0,61100.0,0.146924]
[1719460924759,0.76824497,61101.0,61100.0,0.146924]
[1719460925271,0.62108117,61101.0,61100.0,0.146924]
[1719460925828,0.62308117,61101.0,61100.0,0.146924]
[1719460926162,0.62308117,61101.0,61100.0,0.000924]
[1719460926368,1.65775795,61101.0,61100.0,0.000924]
[1719460926571,1.99515795,61101.0,61100.0,0.000924]
[1719460926699,2.07298675,61101.0,61100.0,0.000924]
[1719460926906,2.27293155,61101.0,61100.0,0.000924]
[1719460927176,2.47293155,61101.0,61100.0,0.000924]
[1719460927357,2.49369902,61101.0,61100.0,0.000924]
[1719460927529,2.65697177,61101.0,61100.0,0.000924]
[1719460927709,2.65497177,61101.0,61100.0,0.000924]
[1719460928682,2.48969902,61101.0,61100.0,0.000924]
[1719460928812,0.94944643,61101.0,61100.0,0.000924]
[1719460929015,1.04524643,61101.0,61100.0,0.142324]
[1719460929322,1.02575116,61101.0,61100.0,0.142324]
[1719460929471,0.79632685,61101.0,61100.0,0.142324]
[1719460929688,0.69842516,61101.0,61100.0,0.142324]
[1719460929884,0.69842516,61101.0,61100.0,0.162324]
[1719460929885,0.01063616,61101.0,61100.0,0.162324]
[1719460930095,0.01063616,61101.0,61100.0,0.17214335]
[1719460930293,0.01963616,61101.0,61100.0,0.17214335]
[1719460930525,0.01063616,61101.0,61100.0,0.17214335]
[1719460930750,0.00563616,61101.0,61100.0,0.17212034]
[1719460930971,0.01063616,61101.0,61100.0,0.17212034]
[1719460931146,0.01063616,61101.0,61100.0,0.33578634]
[1719460932505,0.01063616,61101.0,61100.0,0.17212034]
[1719460932716,0.00463616,61101.0,61100.0,0.17212034]
[1719460932860,0.00263616,61101.0,61100.0,0.17212034]
[1719460933061,0.00163616,61101.0,61100.0,0.162324]
[1719460933269,0.00263616,61101.0,61100.0,0.17514923]
[1719460933486,0.00363616,61101.0,61100.0,0.17514923]
[1719460933674,0.00263616,61101.0,61100.0,0.15514923]
[1719460933831,0.26109916,61101.0,61100.0,0.15214923]
[1719460934032,0.26109916,61101.0,61100.0,0.142324]
[1719460934236,0.26109916,61101.0,61100.0,0.145324]
[1719460934652,0.16529916,61101.0,61100.0,0.142324]
[1719460935698,0.16929916,61101.0,61100.0,0.142324]
[1719460936036,0.16529916,61101.0,61100.0,0.142324]
[1719460936201,0.16529916,61101.0,61100.0,0.144324]
[1719460936362,0.17329916,61101.0,61100.0,0.002924]
[1719460936571,0.82795116,61101.0,61100.0,0.000924]
[1719460937019,0.83395116,61101.0,61100.0,0.000924]
[1719460937227,0.82595116,61101.0,61100.0,0.000924]
[1719460938087,0.81995116,61101.0,61100.0,0.000924]
[1719460938676,0.82795116,61101.0,61100.0,0.000924]
[1719460939024,0.81995116,61101.0,61100.0,0.000924]
[1719460939237,1.14727716,61101.0,61100.0,0.000924]
[1719460939435,1.58543834,61101.0,61100.0,0.000924]
[1719460939638,1.73453834,61101.0,61100.0,0.000924]
[1719460939960,1.72853834,61101.0,61100.0,0.000924]
[1719460940159,1.71928398,61101.0,61100.0,0.000924]
[1719460940361,1.73328398,61101.0,61100.0,0.000924]
[1719460940918,1.72728398,61101.0,61100.0,0.000924]
[1719460941679,1.73628398,61101.0,61100.0,0.000924]
[1719460942112,1.72828398,61101.0,61100.0,0.000924]
[1719460942316,1.73828398,61101.0,61100.0,0.000924]
[1719460942511,1.59518398,61101.0,61100.0,0.000924]
[1719460943070,0.865819,61101.0,61100.0,0.000924]
[1719460943287,0.21139672,61101.0,61100.0,0.000924]
[1719460943506,0.53872272,61101.0,61100.0,0.082924]
[1719460943706,1.24099014,61101.0,61100.0,0.000924]
[1719460943911,1.64168386,61101.0,61100.0,0.000924]
[1719460944426,1.66800333,61101.0,61100.0,0.000924]
[1719460944840,1.66800354,61101.0,61100.0,0.000924]
[1719460946501,1.64168281,61101.0,61100.0,0.000924]
[1719460946709,1.6681313,61101.0,61100.0,0.000924]
[1719460947440,1.3408053,61101.0,61100.0,0.000924]
[1719460949343,1.26743863,61101.0,61100.0,0.000924]
[1719460949771,1.26716332,61101.0,61100.0,0.000924]
[1719460951344,1.10482434,61101.0,61100.0,0.000924]
[1719460952491,1.20264656,61101.0,61100.0,0.000924]
[1719460952911,1.10482434,61101.0,61100.0,0.000924]
[1719460953085,1.10515017,61101.0,61100.0,0.000924]
[1719460953494,1.20300621,61101.0,61100.0,0.000924]
[1719460953715,0.87568021,61101.0,61100.0,0.000924]
[1719460953907,0.87568021,61101.0,61100.0,0.167624]
[1719460953908,0.12053142,61101.0,61100.0,0.167624]
[1719460954113,0.04713517,61101.0,61100.0,0.15745865]
[1719460954528,0.04713517,61101.0,61100.0,0.147624]
[1719460954734,0.04713517,61101.0,61100.0,0.15745865]
[1719460954735,0.11653616,61101.0,61100.0,0.15745865]
[1719460954935,0.11653616,61101.0,61100.0,0.147624]
[1719460955615,0.10753616,61101.0,61100.0,0.147624]
[1719460956027,0.13201873,61101.0,61100.0,0.147624]
[1719460956267,0.10453616,61101.0,61100.0,0.147624]
[1719460956473,0.01763616,61101.0,61100.0,0.147624]
[1719460956682,0.11353616,61101.0,61100.0,0.147624]
[1719460956854,0.11353616,61101.0,61100.0,0.167624]
[1719460957454,0.2694245,61105.0,61100.0,0.167624]
[1719460957736,0.02790996,61104.0,61102.0,0.1671]
[1719460958130,0.19377378,61108.0,61106.0,0.1471]
[1719460958339,0.02841588,61107.0,61106.0,0.1671]
[1719460958751,0.02841588,61107.0,61106.0,0.17692497]
[1719460958953,0.163637,61111.0,61106.0,0.17692497]
[1719460958954,0.09787378,61111.0,61107.0,0.1471]
[1719460959102,0.09787378,61115.0,61113.0,0.02]
[1719460959305,0.09787378,61115.0,61108.0,0.08130346]
[1719460959306,0.0959,61116.0,61114.0,0.15550646]
[1719460959704,0.02829678,61115.0,61114.0,0.15550646]
[1719460960691,0.28685759,61119.0,61114.0,0.15550646]
[1719460960692,0.27759949,61119.0,61114.0,0.1491]
[1719460960893,0.1,61118.0,61114.0,0.1531]
[1719460961095,0.1,61118.0,61115.0,0.01040642]
[1719460961315,0.1,61118.0,61114.0,0.1531]
[1719460961738,0.1,61118.0,61115.0,0.01040642]
[1719460961913,0.1,61118.0,61114.0,0.1531]
[1719460962173,0.1,61118.0,61114.0,0.1491]
[1719460962351,0.1,61118.0,61114.0,0.1451]
[1719460962907,0.1,61118.0,61114.0,0.1511]
[1719460963187,0.1,61118.0,61115.0,0.01040642]
[1719460963490,0.275618,61118.0,61115.0,0.01040642]
[1719460963639,0.267618,61118.0,61115.0,0.01040642]
[1719460964193,0.267618,61118.0,61114.0,0.1461]
[1719460964194,0.269618,61118.0,61114.0,0.1461]
[1719460964456,0.263618,61118.0,61114.0,0.1451]
[1719460965549,0.267618,61118.0,61114.0,0.1451]
[1719460965737,0.273618,61118.0,61115.0,0.001]
[1719460965922,0.269618,61118.0,61115.0,0.001]
[1719460966216,0.269618,61118.0,61114.0,0.1451]